Cogmind - Beta 14 @@@ ROGUE MODE // 2024.10.15 @ 07:45:49 Player: Xaria Result: Destroyed by G-34 Mercenary with Small Laser Performance ------------- Evolutions (0) 0 Regions Visited (2) 400 Robots Destroyed (37) 185 Value Destroyed (699) 699 Prototype IDs (0) 0 Alien Tech Used (0) 0 Bonus (60) 60 TOTAL SCORE: 1344 Bonus ------- Follower Combat Kills 60 Cogmind --------- Core Integrity 0/250 Matter 286/300 Energy 114/125 System Corruption 0% Temperature Cool (60) Movement Rolling (175) Ox5 Location -10/Mines Parts ------- > --- POWER (1) -------- Light Ion Engine > --- PROPULSION (2) --- Light Treads Compact Wheel > --- UTILITY (2) ------ Huge Storage Unit Hardened Light Armor Plating > --- WEAPON (2) ------- EM Shotgun Light Assault Rifle > --- INVENTORY (25) --- Light Nuclear Core Wheel Flight Unit Improved Heat Sink Medium Storage Unit Large Storage Unit Large Matter Pod (150) Structural Scanner Sensor Array Signal Interpreter Signal Interpreter Seismic Detector Hardened Light Armor Plating EM Shotgun EM Shotgun Medium Laser Light Assault Rifle Light Assault Rifle Mining Claw Peak State ------------ > --- POWER ------------ Light Ion Engine > --- PROPULSION ------- Light Treads Compact Wheel > --- UTILITY ---------- High-capacity Storage Unit Hardened Light Armor Plating > --- WEAPON ----------- EM Shotgun Assault Rifle > --- INVENTORY -------- Light Treads Wheel Compact Wheel Medium Storage Unit Large Storage Unit Large Matter Pod Structural Scanner Sensor Array Signal Interpreter Signal Interpreter Seismic Detector Hardened Light Armor Plating EM Shotgun EM Shotgun Medium Laser Light Assault Rifle Mining Claw [Rating: 11] Favorites ----------- Power Light Ion Engine Engine Light Ion Engine Propulsion Compact Wheel Treads Light Treads Wheel Compact Wheel Utility Hardened Light Armor Plating Device Seismic Detector Storage High-capacity Storage Unit Protection Hardened Light Armor Plating Weapon EM Shotgun Energy Gun EM Shotgun Ballistic Gun Assault Rifle Slashing Weapon Mining Claw Build | -11 -10 -10 ------- Run | Yrd Mat Min Slots Evolved . | . . . Power . | . . . Propulsion . | . . . Utility . | . . . Weapon . | . . . Parts Attached 28 | 9 18 1 Power 4 | 1 3 . Engine 4 | 1 3 . Core . | . . . Reactor . | . . . Propulsion 6 | 3 3 . Treads 3 | 1 2 . Leg . | . . . Wheel 3 | 2 1 . Hover . | . . . Flight . | . . . Utility 7 | 2 5 . Device 1 | 1 . . Storage 3 | 1 2 . Processor . | . . . Hackware . | . . . Protection 3 | . 3 . Artifact . | . . . Weapon 11 | 3 7 1 Energy Gun 4 | 2 2 . Energy Cannon . | . . . Ballistic Gun 5 | 1 3 1 Ballistic Cannon . | . . . Launcher . | . . . Special Weapon . | . . . Impact Weapon . | . . . Slashing Weapon 2 | . 2 . Piercing Weapon . | . . . Special Melee Weapon . | . . . Unidentified Prototypes . | . . . Parts Lost 4 | . 3 1 Power 1 | . 1 . Propulsion . | . . . Utility 1 | . 1 . Weapon 2 | . 1 1 Highest Loss Streak 1 | . 1 1 To Critical Strikes . | . . . Average Slot Usage (%) 98 | . 98 100 Engine 14 | . 14 14 Treads 14 | . 14 14 Wheel 14 | . 14 14 Device 1 | . 1 . Storage 14 | . 14 14 Protection 11 | . 11 14 Energy Gun 14 | . 14 14 Ballistic Gun 12 | . 12 14 Slashing Weapon 1 | . 1 . Peak Build Rating 11 | 7 11 11 Average Rating 9 | 5 9 10 On Entrance 6 | . 7 11 Naked Turns . | . . . Heaviest Build 93 | 12 93 93 Greatest Support 32 | 32 20 16 Greatest Overweight (x) 5 | . 5 5 Average Overweight (x) 2 | . 2 5 Largest Inventory Capacity 25 | 8 25 25 Average Capacity 18 | 7 18 25 Most Carried 20 | 6 19 20 Average Carried 14 | 4 14 19 Final Capacity 25 | 8 25 25 Final Carried 19 | 6 19 19 Class Distribution -------------------- 100% | Mutant Dominant Class ---------------- Mutant | -10/Materials Mutant | -10/Mines Resources | -11 -10 -10 ----------- Run | Yrd Mat Min Matter Collected 820 | 285 523 12 Remotely . | . . . Salvage Created 1260 | 134 1008 118 Parts 83 | 11 63 9 Haulers Intercepted 2 | . 2 . Recyclers Shooed 4 | 1 3 . Parts Field Recycled . | . . . Retrieved Matter . | . . . Parts Self-Destructed . | . . . Prevented . | . . . Kills | -11 -10 -10 ------- Run | Yrd Mat Min Combat Hostiles Destroyed 22 | . 19 3 Guns 20 | . 17 3 AOE 2 | . 2 . Classes Destroyed 8 | 2 6 . Worker 2 | . 2 . Builder 2 | . 2 . Tunneler 4 | 3 . 1 Hauler 2 | . 2 . Recycler 2 | 1 1 . Watcher 3 | . 3 . Swarmer 8 | . 6 2 Grunt 14 | . 13 1 Best Kill Streak 8 | 2 8 2 Combat Bots Only 3 | . 3 2 Max Kills in Single Turn 2 | 1 2 1 Gunslinging . | . . . Exploded 2 | . 2 . Melee . | . . . Uniques/NPCs Destroyed . | . . . Combat | -11 -10 -10 -------- Run | Yrd Mat Min Hostile Shots Fired 111 | . 89 22 Missed 30 | . 24 6 Damage Taken 986 | . 812 174 Core 251 | . 222 29 Absorbed by Shields . | . . . Core Remaining (%) 100 | 100 . . Volleys Fired 89 | 16 65 8 Largest 2 | 2 2 2 Hottest 90 | 90 70 65 Shots Fired 175 | 30 129 16 Gun 175 | 30 129 16 Cannon . | . . . Launcher . | . . . Special . | . . . Kinetic 81 | 8 65 8 Thermal 28 | 22 6 . Explosive . | . . . Electromagnetic 66 | . 58 8 Robot Hit Streak 12 | 5 12 4 Robot Miss Streak 4 | 3 4 1 Penetration Max . | . . . Secondary Targets 2 | . 1 1 Max Gunslinging Chain 1 | . 1 1 Shots Hit Robots 119 | 15 92 12 Core Hits 64 | 5 52 7 Critical Kills . | . . . Critical Parts Destroyed 1 | . 1 . Critical Strikes 1 | . 1 . Destroy 1 | . 1 . Melee Attacks 5 | . 5 . Impact . | . . . Slashing 5 | . 5 . Piercing . | . . . Sneak Attacks 1 | . 1 . Combat Hostiles . | . . . Follow-up Attacks . | . . . Damage Inflicted 1791 | 181 1466 144 Guns 1599 | 181 1274 144 Cannons . | . . . Explosions 142 | . 142 . Melee 50 | . 50 . Ramming . | . . . Kinetic 609 | 34 532 43 Thermal 314 | 147 167 . Explosive . | . . . Electromagnetic 818 | . 717 101 Impact . | . . . Slashing 50 | . 50 . Piercing . | . . . Highest Corruption . | . . . Average Corruption . | . . . Corruption Purged . | . . . Corruption Blocked . | . . . Overload Shots . | . . . Overflow Damage 47 | . 47 . Projectiles . | . . . Explosions 27 | . 27 . Melee 20 | . 20 . Knockbacks . | . . . Impact . | . . . Kinetic . | . . . Secondary . | . . . Self-Inflicted Damage 69 | . 69 . Shots 2 | . 2 . Rammed . | . . . Targets Rammed . | . . . Kicked . | . . . Crushed . | . . . Highest Temperature 294 | 140 294 80 Average Temperature 71 | 57 79 32 Received Heat Transfer 426 | . 360 66 Siege Activations . | . . . Robots Corrupted . | . . . Combat Hostiles . | . . . Parts Fried 2 | . 1 1 Impact Corruptions . | . . . Robots Melted . | . . . Combat Hostiles . | . . . Parts Melted . | . . . Heat Transferred 732 | 408 324 . Parts Sabotaged . | . . . Parts Stolen . | . . . Parts Stripped . | . . . Power Chain Reactions 2 | . 2 . Alert | -11 -10 -10 ------- Run | Yrd Mat Min Peak Influence 307 | 20 307 150 Initial 62 | . 13 62 Average 135 | 10 160 89 Maximum Alert Level 1 | . 1 . Low Security (%) 75 | 100 66 100 Level 1 24 | . 33 . Level 2 . | . . . Level 3 . | . . . Level 4 . | . . . Level 5 . | . . . High Security . | . . . Max Security . | . . . Squads Dispatched 3 | . 3 . Investigation 2 | . 2 . Extermination . | . . . Reinforcement 1 | . 1 . Assault . | . . . Garrison . | . . . Intercept . | . . . Searches Triggered . | . . . Construction Impeded . | . . . Haulers Reinforced . | . . . Active Scanning Responses . | . . . Cargo Convoy Interrupts . | . . . Stealth | -11 -10 -10 --------- Run | Yrd Mat Min Distress Signals 4 | . 4 . Communications Jammed . | . . . Distress Signals . | . . . Times Spotted 33 | . 26 7 Peak Tracking Total 6 | . 6 3 Tactical Retreats 3 | . 3 . Traps | -11 -10 -10 ------- Run | Yrd Mat Min Traps Triggered 3 | . 3 . Indirectly . | . . . Trap Hack Attempts . | . . . Triggered . | . . . Disarmed . | . . . Reprogrammed . | . . . Reused . | . . . Traps Extracted . | . . . Installed . | . . . Triggered . | . . . Machines | -11 -10 -10 ---------- Run | Yrd Mat Min Machines Disabled . | . . . Max in Single Turn . | . . . Machines Repaired . | . . . Machines Dismantled . | . . . Machines Sabotaged . | . . . Overloaded Fab Kills . | . . . Hacking | -11 -10 -10 --------- Run | Yrd Mat Min Machines Accessed 7 | . 7 . Terminals 5 | . 5 . Fabricators . | . . . Repair Stations . | . . . Recycling Units 2 | . 2 . Scanalyzers . | . . . Garrison Access . | . . . Total Hacks 16 | . 16 . Successful 3 | . 3 . Failed 12 | . 12 . Catastrophic 3 | . 3 . Database Lockouts 1 | . 1 . Manual 15 | . 15 . Terminals 13 | . 13 . Fabricators . | . . . Repair Stations . | . . . Recycling Units 3 | . 3 . Scanalyzers . | . . . Garrison Access . | . . . Terminal Hacks 3 | . 3 . Robot Analysis 2 | . 2 . Hauler Manifests 1 | . 1 . Fabricator Hacks . | . . . Repair Station Hacks . | . . . Recycling Unit Hacks . | . . . Scanalyzer . | . . . Garrison Access Hacks . | . . . Unauthorized Hacks . | . . . Terminals . | . . . Fabricators . | . . . Repair Stations . | . . . Recycling Units . | . . . Scanalyzers . | . . . Garrison Access . | . . . Data Cores Recovered . | . . . Used . | . . . Hacking Detections 8 | . 8 . Full Trace Events . | . . . Feedback Events . | . . . Feedback Blocked . | . . . Robot Schematics Acquired . | . . . Robots Built . | . . . Authchips . | . . . Time . | . . . Total Robot Build Rating . | . . . Part Schematics Acquired . | . . . Parts Built . | . . . Authchips . | . . . Time . | . . . Total Part Build Rating . | . . . Parts Repaired . | . . . Time . | . . . Parts Recycled . | . . . Recycled Matter . | . . . Retrieved Matter . | . . . Retrieved Components . | . . . Parts Scanalyzed . | . . . Part Schematics Acquired . | . . . Parts Damaged . | . . . Bothacking | -11 -10 -10 ------------ Run | Yrd Mat Min Used RIF Installer . | . . . Robots Hacked . | . . . Non-combat . | . . . Combat . | . . . Robot Hacks Applied . | . . . Relay Couplers Released . | . . . Fabnet Peak Effective % . | . . . Robots Rewired . | . . . Allies Hacked . | . . . Hacks Repelled . | . . . Allies | -11 -10 -10 -------- Run | Yrd Mat Min Total Allies 1 | . . 1 Largest Group 1 | . . 1 Highest-Rated Group 31 | . . 31 Highest-Rated Ally 31 | . . 31 Total Orders . | . . . Ally Attacks 12 | . . 12 Total Damage 189 | . . 189 Kills 2 | . . 2 Allies Corrupted . | . . . Allies Melted . | . . . Intel | -11 -10 -10 ------- Run | Yrd Mat Min Robot Analysis Total 2 | . 2 . Derelict Logs Recovered 1 | . . 1 Drone Launches . | . . . Drone Recoveries . | . . . Exploration | -11 -10 -10 ------------- Run | Yrd Mat Min Turns Passed 1939 | 134 1402 403 Spaces Moved 1046 | 71 763 212 Core 1 | 1 . . Treads 62 | . 62 . Legs . | . . . Wheels 983 | 70 701 212 Hover . | . . . Flight . | . . . Fastest Speed 50 | 50 100 175 Average Speed 147 | 99 143 175 Slowest Speed 175 | 100 175 175 Overloaded Moves . | . . . Propulsion Burnouts . | . . . Robots Hopped . | . . . Cave-ins Triggered . | . . . Exploration Rate (%) 50 | 5 98 48 Regions Visited 2 Branch Regions 1 Pre-discovered Areas . | . . . Known Exits Taken . | . . . Unknown Exits Taken 2 | 1 1 . Scrap Searched . | . . . Spaces Dug 1 | . 1 . Terrain Destroyed 6 | . 6 . Melee 1 | . 1 . Projectile . | . . . AOE 5 | . 5 . Terrain Rammed . | . . . Walls Destroyed . | . . . Machines Disabled . | . . . Actions | -11 -10 -10 --------- Run | Yrd Mat Min Total 1260 | 101 929 230 Wait 49 | . 41 8 Move 1044 | 70 762 212 Hop . | . . . Pick Up 31 | 6 24 1 Fast Attach 12 | 7 5 . Attach 6 | . 5 1 Detach . | . . . Swap 10 | 2 8 . Drop 14 | . 14 . Fire 89 | 16 65 8 Melee 5 | . 5 . Ram . | . . . Kick . | . . . Crush . | . . . Escape Stasis . | . . . Rewire . | . . . Trap . | . . . Miscellaneous . | . . . Route ------- -11/Scrapyard -10/Materials (discovered 6 exits: [*Mat x3] / [*Min x2] / [*Sub]) -10/Mines History --------- Turn | Location | Event 11 | -11/Scrapyard | Discovered new exit (range 16) 135 | -11/Scrapyard | Entered Materials 324 | -10/Materials | Build established: Mutant 415 | -10/Materials | Discovered new exit (range 11) 484 | -10/Materials | Discovered new exit (range 6) 595 | -10/Materials | Central database locked down 599 | -10/Materials | Discovered new exit (range 13) 814 | -10/Materials | Core integrity fell below 50% 1200 | -10/Materials | Core integrity fell below 20% 1393 | -10/Materials | Discovered new exit (range 6) 1437 | -10/Materials | Discovered new exit (range 14) 1472 | -10/Materials | Discovered new exit (range 7) 1535 | -10/Materials | Derelicts attacked the area 1537 | -10/Materials | Entered Mines 1688 | -10/Mines | Learned 2 Materials zone layouts 1832 | -10/Mines | Received a Mining Laser from a helpful Derelict 1940 | -10/Mines | Destroyed by G-34 Mercenary with Small Laser Last Messages --------------- 01716_ R-06 Scavenger collects Lgt. Assault Rifle. 01721_ R-06 Scavenger collects Corrupted Lgt. Ion Engine. 01830_ A derelict emerges from the shadows: "What are you doing alone down here?" 01832_ LD-SEC(g): "And why aren't you carrying a mining laser?! Certainly you don't want THEM to uncover you when the ceiling comes crashing down? Here, take my spare." 01835_ LD-SEC(g): "You're apparently new around these parts, I'll cover you." 01838_ LD-SEC(g): "Mining lasers are a lot more useful than you might think..." 01862_ T-07 Excavator destroyed. 01865_ Acquired 3 matter. 01880_ Assault Rifle destroyed. 01921_ G-47 Trooper suffers critical hit (Burn). 01926_ LD-SEC(g) destroyed. 01939_ G-47 Trooper destroyed. Map ----- +----------------------------------------------------+ | ???????????????????????????????????????? | | ???????????????????????????????????????? | | ???????????????????????????????????????? | | ???????????????????????????????????????? | | ???????????????????????????????????????? | | ???????????????????????????????????????? | | ???????????????????????????????????????? | | ???????????????????????????????????????? | | ???????????????????????????????????????? | | ???????????????????????????????????????? | | ???????????????????????????????????????? | | ???????????????????????????????????????? | | ????????????? ????????????????????????? | | ????????????? ???????????????????????? | | ????????????? ???????????????????????? | | ????????????? ???????????????????????? | | ????????????? #???????????????????????? | | ???????????## ##??????????????????????? | | ?????????### ?????#?????????????????? | | ?????????? ???? #?????????????????? | | ?????????? ???# #????###??????????? | | ??????????? ???# ### ##?????????? | | ???????????# ??# #?????????? | | ???????????# #?# ????????? | | ???????????# ## ????????? | | ???????????# #@ ????????? | | ???????????#* %[## ????????? | | ??????????##%!g##????? """ #????????? | | ?????###### = ##?????????"????????????? | | ?????# #??????????????????????? | | ?????# ???????????????? | | ?????# #### ## ##???????????????? | | ??#### #??# #?# ##????????????????? | | ??# # ##?# #??######?????????????????? | | ??# ### #####?????????????????????? | | ??## #?????????????????????? | | ???## #?????????????????????? | | ????# # ##### ??????????????????? | | ????# ### #???????###?????????????????? | | ????# #?# #???????????????????????????? | | ????# #?# ###?????????????????????????? | | ????# ### ####??????????????????????? | | ????# ##?????????????????????? | | ????# ### * ##????????????????????? | | ????# #?# ! ###??????????????????? | | ????# ### ##?????????????????? | | ????# # ## #?????????????????? | | ????###!## #### #?????????????????? | | ??????#*####??## #?????????????????? | | ??#####%####???## #?????????????????? | +----------------------------------------------------+ Best States ------------- Heat Dissipation 25 Energy Generation 10 Energy Capacity 125 Matter Stores 300 Matter Capacity 300 Sight Range 16 Terrain Scan Density 10 Armor Coverage 150 Evasion (%) 40 Recoil Reduction 1 Item Schematics ----------------- None Robot Schematics ------------------ None Fabricated ------------ Nothing Alien Tech Used ----------------- None Achievements -------------- None Challenges ------------ None Game ------ Seed PowerMagneticPrototype Manual? 0 Play Time 00:22:38 Cumulative 10.9 hours Start 2024.10.15 @ 01:48:34 End 2024.10.15 @ 07:45:49 Sessions 3 Manual Loads 0 Difficulty Rogue Special Mode None Game No. 13 Rogue 13 Adventurer 0 Explorer 0 Win Type - Total 0 Types 0/0/0/0/0/0/0/0/0 Lore% 19 Gallery% 12 Achievement% 19 Wizard Run 0 Options --------- Layout 1 ASCII 0 Keyboard 0 Movement Mouse Keybinds 0 Fullscreen 1 Font 24/Smallcaps Map View 50x35 Zoom Use 0% Tactical HUD 1 Map Filters NONE Filters NONE Steam 1 RUN: 7dfd5b18-fe58-45e3-afee-d443f379fe81